[Event "2nd ESNAICC Women 2024"]
[Site "Andorra la Vella"]
[Date "2024.06.27"]
[Round "7.2"]
[White "Muratet Carmona, Julia"]
[Black "Zvereva, Marija"]
[Result "1/2-1/2"]
[ECO "A85"]
[WhiteElo "1834"]
[BlackElo "2040"]
[Annotator "NA RC"]
[PlyCount "76"]
[EventDate "2024.06.24"]
[EventType "tourn"]
[EventCountry "AND"]
[SourceTitle "playchess.com"]
[Source "ChessBase"]
[SourceQuality "1"]
[TimeControl "40/5400+30:1800+30"]

1. d4 {[%emt 0:00:03]} f5 {[%emt 0:00:20]} 2. c4 {[%emt 0:00:40]} Nf6 {[%emt 0:00:06]} 3. Nc3 {[%emt 0:00:25]} e6 {[%emt 0:00:12]} 4. Bg5 {[%emt 0:00:52]} h6 {[%emt 0:00:39]} 5. Bf4 {[%emt 0:02:03]} g5 {[%emt 0:03:49]} 6. Be5 {[%emt 0:01:45]} d6 {[%emt 0:02:58]} 7. Bxf6 $11 {[%emt 0:01:16]} Qxf6 {[%emt 0:00:05]} 8. e3 {[%emt 0:00:23]} Bg7 {[%emt 0:09:33]} 9. Qh5+ {[%emt 0:03:01]} Kf8 {[%emt 0:11:01]} 10. Nb5 {[%emt 0:07:13]} Qe7 {[%emt 0:09:15]} 11. O-O-O {[%emt 0:07:50]} a6 {[%emt 0:00:27]} 12. Nc3 {[%emt 0:00:20]} Bd7 {[%emt 0:00:29]} 13. Qf3 {[%emt 0:03:26]} Nc6 {[%emt 0:01:58]} 14. Nge2 {[%emt 0:05:58]} Bf6 {[%emt 0:12:23]} 15. g4 {[%emt 0:07:39]} fxg4 {[%emt 0:10:24]} 16. Qxg4 {[%emt 0:00:19]} b5 {[%emt 0:03:13]} 17. Ng3 {[%emt 0:15:33]} bxc4 {[%emt 0:03:46]} 18. Bxc4 {[%emt 0:01:53]} d5 {[%emt 0:00:49]} 19. Bb3 {[%emt 0:00:37]} Na5 {[%emt 0:04:48]} 20. f4 {[%emt 0:09:40]} Nxb3+ {[%emt 0:03:46]} 21. axb3 {[%emt 0:00:05]} Ke8 {[%emt 0:00:57]} 22. Nh5 {[%emt 0:02:35]} Kd8 {[%emt 0:01:20]} 23. Nxf6 {[%emt 0:01:15]} Qxf6 {[%emt 0:00:06]} 24. fxg5 {[%emt 0:03:14]} Qxg5 {[%emt 0:00:58]} 25. Qxg5+ {[%emt 0:01:34]} hxg5 {[%emt 0:00:06]} 26. Rdg1 {[%emt 0:00:19]} Rh5 {[%emt 0:01:45]} 27. Na4 {[%emt 0:04:11]} Bxa4 {[%emt 0:03:31]} 28. bxa4 {[%emt 0:00:04]} Ke7 {[%emt 0:00:07]} 29. Rg2 {[%emt 0:00:43]} Rah8 {[%emt 0:00:55]} 30. Kd2 {[%emt 0:02:55]} Kd6 {[%emt 0:02:23]} 31. b4 {[%emt 0:01:32]} Rb8 {[%emt 0:01:55]} 32. Rb1 {[%emt 0:00:55]} c6 {[%emt 0:00:58]} 33. Kd3 {[%emt 0:01:34]} Rbh8 {[%emt 0:01:30]} 34. Rbb2 {[%emt 0:00:43]} e5 {[%emt 0:00:25]} 35. dxe5+ {[%emt 0:02:29]} Kxe5 {[%emt 0:00:05]} 36. Rbc2 {[%emt 0:00:20]} R8h6 {[%emt 0:00:28]} 37. Rcf2 {[%emt 0:01:51]} Rh7 {[%emt 0:01:51]} 38. Rc2 {[%emt 0:00:12]} R7h6 {[%emt 0:05:15]} 1/2-1/2

[Event "2nd ESNAICC Women 2024"]
[Site "Andorra la Vella"]
[Date "2024.06.27"]
[Round "7.3"]
[White "De la Riva Real, Ariadna"]
[Black "Thornton, Filipina"]
[Result "0-1"]
[ECO "B22"]
[WhiteElo "1774"]
[BlackElo "1787"]
[Annotator "NA RC"]
[PlyCount "58"]
[EventDate "2024.06.24"]
[EventType "tourn"]
[EventCountry "AND"]
[SourceTitle "playchess.com"]
[Source "ChessBase"]
[SourceQuality "1"]
[TimeControl "40/5400+30:1800+30"]

1. e4 {[%emt 0:00:02]} c5 {[%emt 0:00:11]} 2. Nf3 {[%emt 0:00:07]} e6 {[%emt 0:00:17]} 3. c3 {[%emt 0:03:03]} d5 {[%emt 0:00:30]} 4. exd5 {[%emt 0:01:01]} Qxd5 {[%emt 0:00:09]} 5. d4 {[%emt 0:01:40]} Nf6 {[%emt 0:00:29]} 6. Bb5+ {[%emt 0:01:43]} Nc6 {[%emt 0:04:44]} 7. O-O {[%emt 0:03:10]} Bd7 {[%emt 0:08:04]} 8. b3 {[%emt 0:21:27]} cxd4 {[%emt 0:05:47]} 9. Bc4 {[%emt 0:00:24]} Qh5 {[%emt 0:06:07]} 10. cxd4 {[%emt 0:01:08]} Bd6 {[%emt 0:02:03]} 11. Nc3 {[%emt 0:08:19]} Ne7 {[%emt 0:03:54]} 12. Ne5 {[%emt 0:06:12]} Qh4 {[%emt 0:04:45]} 13. g3 {[%emt 0:10:10]} Qh3 {[%emt 0:01:48]} 14. f3 {[%emt 0:00:13]} Ng6 {[%emt 0:09:44]} 15. Re1 {[%emt 0:02:20]} Rc8 {[%emt 0:07:42]} 16. Bf1 {[%emt 0:05:49]} Qh5 {[%emt 0:01:26]} 17. g4 {[%emt 0:05:22]} Qh4 {[%emt 0:00:58]} 18. Nb5 {[%emt 0:05:17]} Bb8 {[%emt 0:03:13]} 19. Ba3 {[%emt 0:01:13]} h5 {[%emt 0:06:23]} 20. Rc1 {[%emt 0:04:33]} hxg4 {[%emt 0:12:11]} 21. Rxc8+ {[%emt 0:00:13]} Bxc8 {[%emt 0:00:08]} 22. Qc2 {[%emt 0:00:26]} Bd7 {[%emt 0:08:18]} 23. Nd6+ {[%emt 0:02:02]} Bxd6 {[%emt 0:00:23]} 24. Bxd6 {[%emt 0:00:02]} Qxe1 {[%emt 0:01:09]} 25. Nxg6 {[%emt 0:01:19]} Qe3+ {[%emt 0:04:28]} 26. Kg2 {[%emt 0:00:43]} gxf3+ {[%emt 0:00:15]} 27. Kh1 {[%emt 0:00:40]} f2 {[%emt 0:02:44]} 28. Ne5 {[%emt 0:02:58]} Ng4 {[%emt 0:02:19]} 29. Nxd7 {[%emt 0:03:05]} Qf3+ {[%emt 0:00:29]} 0-1

[Event "2nd ESNAICC Women 2024"]
[Site "Andorra la Vella"]
[Date "2024.06.27"]
[Round "7.4"]
[White "Henderson de La Fuente, Andrea"]
[Black "Nevska, Gerda"]
[Result "0-1"]
[ECO "B00"]
[WhiteElo "1966"]
[BlackElo "1872"]
[Annotator "NA RC"]
[PlyCount "76"]
[EventDate "2024.06.24"]
[EventType "tourn"]
[EventCountry "AND"]
[SourceTitle "playchess.com"]
[Source "ChessBase"]
[SourceQuality "1"]
[TimeControl "40/5400+30:1800+30"]

1. e4 {[%emt 0:00:07]} Nc6 {[%emt 0:00:05]} 2. d4 {[%emt 0:01:15]} e5 {[%emt 0:00:05]} 3. d5 {[%emt 0:00:15]} Nce7 {[%emt 0:00:06]} 4. Nf3 {[%emt 0:00:07]} Ng6 {[%emt 0:00:06]} 5. h4 {[%emt 0:01:11]} h5 $1 {[%emt 0:00:13]} 6. Bg5 {[%emt 0:00:30]} f6 {[%emt 0:03:25]} 7. Be3 {[%emt 0:00:17]} Bb4+ {[%emt 0:01:00]} 8. c3 {[%emt 0:01:50]} Bd6 $16 {[%emt 0:00:27]} 9. Be2 {[%emt 0:04:09]} Nf4 {[%emt 0:02:28]} 10. Bf1 {[%emt 0:08:58]} Ng6 {[%emt 0:15:29]} 11. g3 {[%emt 0:00:22]} N6e7 {[%emt 0:00:17]} 12. a3 {[%emt 0:05:33]} b6 {[%emt 0:02:44]} 13. b4 {[%emt 0:08:41]} a5 {[%emt 0:00:27]} 14. Nbd2 {[%emt 0:00:59]} Nh6 {[%emt 0:01:25]} 15. Nh2 {[%emt 0:07:38]} g6 {[%emt 0:05:25]} 16. Nc4 {[%emt 0:01:45]} Nf7 {[%emt 0:10:18]} 17. g4 {[%emt 0:15:21]} axb4 {[%emt 0:11:45]} 18. axb4 {[%emt 0:00:40]} Rxa1 {[%emt 0:00:14]} 19. Qxa1 {[%emt 0:00:01]} b5 {[%emt 0:00:24]} 20. Nd2 {[%emt 0:16:26]} c6 {[%emt 0:02:46]} 21. Be2 {[%emt 0:02:55]} cxd5 {[%emt 0:05:08]} 22. gxh5 {[%emt 0:02:34]} gxh5 {[%emt 0:02:32]} 23. Bxb5 {[%emt 0:01:19]} d4 {[%emt 0:00:18]} 24. cxd4 {[%emt 0:01:25]} Bxb4 {[%emt 0:00:29]} 25. dxe5 {[%emt 0:01:17]} fxe5 {[%emt 0:04:23]} 26. Nhf3 {[%emt 0:02:45]} Ng6 {[%emt 0:03:02]} 27. Qa4 {[%emt 0:03:20]} Ba5 {[%emt 0:01:45]} 28. Qa2 {[%emt 0:01:30]} Qc7 {[%emt 0:08:16]} 29. Qe6+ {[%emt 0:01:29]} Ne7 {[%emt 0:00:34]} 30. Ng5 {[%emt 0:05:30]} Nxg5 {[%emt 0:02:40]} 31. Bxg5 {[%emt 0:00:06]} Bb4 {[%emt 0:00:23]} 32. Bxe7 {[%emt 0:01:46]} Qc1+ {[%emt 0:01:19]} 33. Ke2 {[%emt 0:00:04]} Qxd2+ {[%emt 0:00:08]} 34. Kf3 {[%emt 0:01:01]} Qf4+ {[%emt 0:00:06]} 35. Kg2 {[%emt 0:00:54]} Qxe4+ {[%emt 0:00:08]} 36. Kh2 {[%emt 0:00:12]} Bxe7 {[%emt 0:00:07]} 37. Kg3 {[%emt 0:02:51]} Rf8 {[%emt 0:01:32]} 38. Qb3 {[%emt 0:01:14]} Qg4+ {[%emt 0:00:19]} 0-1

[Event "2nd ESNAICC Women 2024"]
[Site "Andorra la Vella"]
[Date "2024.06.27"]
[Round "7.5"]
[White "Berend, Elvira"]
[Black "Markidou, Christianna"]
[Result "1-0"]
[ECO "A20"]
[WhiteElo "2230"]
[BlackElo "1676"]
[Annotator "RC"]
[PlyCount "99"]
[EventDate "2024.06.24"]
[EventType "tourn"]
[EventCountry "AND"]
[SourceTitle "playchess.com"]
[Source "ChessBase"]
[SourceQuality "1"]
[TimeControl "40/5400+30:1800+30"]

1. c4 {[%emt 0:00:12]} e5 {[%emt 0:02:59]} 2. d3 {[%emt 0:00:05]} Nf6 {[%emt 0:01:21]} 3. Nf3 {[%emt 0:00:12]} Nc6 {[%emt 0:01:05]} 4. g3 {[%emt 0:00:57]} d5 {[%emt 0:02:30]} 5. cxd5 {[%emt 0:00:09]} Nxd5 {[%emt 0:00:31]} 6. Bg2 {[%emt 0:00:11]} h6 {[%emt 0:00:44]} 7. O-O {[%emt 0:00:20]} Be7 {[%emt 0:00:28]} 8. Nbd2 {[%emt 0:01:28]} O-O {[%emt 0:01:40]} 9. a3 {[%emt 0:00:50]} a5 {[%emt 0:00:50]} 10. Nc4 {[%emt 0:03:49]} Bf6 {[%emt 0:00:45]} 11. h3 {[%emt 0:07:35]} b5 {[%emt 0:02:12]} 12. Ncd2 {[%emt 0:02:47]} a4 {[%emt 0:05:43]} 13. Ne4 {[%emt 0:04:30]} Be7 {[%emt 0:02:16]} 14. Bd2 {[%emt 0:02:07]} f5 {[%emt 0:05:48]} 15. Nc3 {[%emt 0:00:19]} Rb8 {[%emt 0:02:10]} 16. Nxe5 {[%emt 0:02:47]} Nxc3 {[%emt 0:03:08]} 17. Bxc3 {[%emt 0:00:52]} Nxe5 {[%emt 0:00:53]} 18. Bxe5 {[%emt 0:00:06]} Bf6 {[%emt 0:01:06]} 19. Bxf6 {[%emt 0:02:07]} Rxf6 {[%emt 0:00:47]} 20. Rc1 {[%emt 0:01:38]} Bb7 {[%emt 0:01:54]} 21. Qc2 {[%emt 0:04:18]} Bxg2 {[%emt 0:00:23]} 22. Kxg2 {[%emt 0:00:05]} c6 {[%emt 0:00:23]} 23. Qc5 {[%emt 0:01:59]} Qb6 {[%emt 0:08:54]} 24. Qxb6 {[%emt 0:01:31]} Rxb6 {[%emt 0:00:13]} 25. f4 {[%emt 0:00:17]} Kf7 {[%emt 0:00:22]} 26. Kf3 {[%emt 0:00:57]} Ke6 {[%emt 0:01:48]} 27. Rc5 {[%emt 0:00:41]} Kd7 {[%emt 0:01:05]} 28. g4 {[%emt 0:03:38]} g6 {[%emt 0:01:36]} 29. Rfc1 {[%emt 0:01:14]} b4 {[%emt 0:01:08]} 30. Ra5 {[%emt 0:03:39]} bxa3 {[%emt 0:00:18]} 31. bxa3 {[%emt 0:00:06]} Rb2 {[%emt 0:00:57]} 32. Rxa4 {[%emt 0:06:14]} Re6 {[%emt 0:00:33]} 33. Re1 {[%emt 0:00:45]} Rb3 {[%emt 0:02:18]} 34. Rg1 {[%emt 0:03:53]} Rb2 {[%emt 0:04:56]} 35. Rg2 {[%emt 0:01:38]} c5 {[%emt 0:05:52]} 36. gxf5 {[%emt 0:01:00]} gxf5 {[%emt 0:00:23]} 37. Rg7+ {[%emt 0:01:03]} Kc6 {[%emt 0:00:15]} 38. Ra6+ {[%emt 0:00:11]} Rb6 {[%emt 0:00:38]} 39. Rxb6+ {[%emt 0:00:08]} Kxb6 {[%emt 0:00:27]} 40. Rf7 {[%emt 0:00:00]} Kb5 {[%emt 0:00:00]} 41. Rxf5 {[%emt 0:00:14]} Rc6 {[%emt 0:04:46]} 42. d4 {[%emt 0:00:18]} Ka4 {[%emt 0:00:20]} 43. Rxc5 {[%emt 0:00:09]} Ra6 {[%emt 0:00:48]} 44. d5 {[%emt 0:00:34]} Kxa3 {[%emt 0:00:22]} 45. e4 {[%emt 0:00:12]} Kb4 {[%emt 0:00:42]} 46. Rc1 {[%emt 0:00:12]} h5 {[%emt 0:00:31]} 47. e5 {[%emt 0:00:39]} Ra3+ {[%emt 0:00:31]} 48. Ke4 {[%emt 0:00:07]} Rxh3 {[%emt 0:00:48]} 49. d6 {[%emt 0:00:07]} Rh2 {[%emt 0:01:02]} 50. Rd1 {[%emt 0:00:14]} 1-0

[Event "2nd ESNAICC Women 2024"]
[Site "Andorra la Vella"]
[Date "2024.06.28"]
[Round "8.2"]
[White "Nevska, Gerda"]
[Black "Berend, Elvira"]
[Result "1/2-1/2"]
[ECO "B20"]
[WhiteElo "1872"]
[BlackElo "2230"]
[Annotator "RC"]
[PlyCount "63"]
[EventDate "2024.06.24"]
[EventType "tourn"]
[EventCountry "AND"]
[SourceTitle "playchess.com"]
[Source "ChessBase"]
[SourceQuality "1"]
[TimeControl "40/5400+30:1800+30"]

1. e4 {[%emt 0:00:04]} c5 {[%emt 0:00:16]} 2. a3 {[%emt 0:00:28]} e5 {[%emt 0:00:58]} 3. Bc4 {[%emt 0:02:04]} Be7 {[%emt 0:00:36]} 4. Nc3 {[%emt 0:00:35]} Nf6 {[%emt 0:00:08]} 5. d3 {[%emt 0:00:11]} O-O {[%emt 0:00:24]} 6. f4 {[%emt 0:00:22]} exf4 {[%emt 0:00:35]} 7. Bxf4 {[%emt 0:01:12]} d6 {[%emt 0:00:13]} 8. Nd5 {[%emt 0:03:26]} Nxd5 {[%emt 0:00:51]} 9. Bxd5 {[%emt 0:00:07]} Qb6 {[%emt 0:00:51]} 10. Nf3 {[%emt 0:03:46]} Nd7 {[%emt 0:04:26]} 11. O-O {[%emt 0:06:54]} Nf6 {[%emt 0:01:31]} 12. Bc4 {[%emt 0:02:09]} Qd8 {[%emt 0:06:39]} 13. e5 {[%emt 0:12:39]} dxe5 {[%emt 0:06:27]} 14. Bxe5 {[%emt 0:04:22]} Bd7 {[%emt 0:05:56]} 15. Qe2 {[%emt 0:05:58]} Bc6 {[%emt 0:03:01]} 16. Rae1 {[%emt 0:02:20]} Bd6 {[%emt 0:05:00]} 17. Qd2 {[%emt 0:22:01]} Bxf3 {[%emt 0:06:54]} 18. Bxf6 {[%emt 0:04:00]} Qxf6 {[%emt 0:01:16]} 19. Rxf3 {[%emt 0:00:04]} Qxb2 {[%emt 0:03:50]} 20. a4 {[%emt 0:03:48]} Be5 {[%emt 0:11:43]} 21. Ref1 {[%emt 0:03:10]} Bf6 {[%emt 0:04:27]} 22. Kh1 {[%emt 0:00:07]} Kh8 {[%emt 0:03:29]} 23. g4 {[%emt 0:04:36]} Bc3 {[%emt 0:05:36]} 24. Qg2 {[%emt 0:04:13]} Rae8 {[%emt 0:07:35]} 25. Bxf7 {[%emt 0:04:07]} Re1 {[%emt 0:02:37]} 26. Rxe1 {[%emt 0:00:25]} Bxe1 {[%emt 0:00:06]} 27. Qe2 {[%emt 0:00:31]} Bh4 {[%emt 0:00:17]} 28. Bg6 {[%emt 0:01:55]} Bf6 {[%emt 0:02:36]} 29. Be4 {[%emt 0:02:46]} g6 {[%emt 0:02:09]} 30. Kg2 {[%emt 0:00:19]} Kg7 {[%emt 0:00:25]} 31. Bd5 {[%emt 0:00:23]} Qd4 {[%emt 0:02:01]} 32. Qe4 {[%emt 0:00:48]} 1/2-1/2

[Event "2nd ESNAICC Women 2024"]
[Site "Andorra la Vella"]
[Date "2024.06.28"]
[Round "8.3"]
[White "Thornton, Filipina"]
[Black "Henderson de La Fuente, Andrea"]
[Result "0-1"]
[ECO "A41"]
[WhiteElo "1787"]
[BlackElo "1966"]
[Annotator "NA RC"]
[PlyCount "84"]
[EventDate "2024.06.24"]
[EventType "tourn"]
[EventCountry "AND"]
[SourceTitle "playchess.com"]
[Source "ChessBase"]
[SourceQuality "1"]
[TimeControl "40/5400+30:1800+30"]

1. d4 {[%emt 0:00:06]} d6 {[%emt 0:00:11]} 2. c4 {[%emt 0:00:16]} e5 {[%emt 0:00:04]} 3. dxe5 {[%emt 0:00:51]} dxe5 {[%emt 0:00:06]} 4. Qxd8+ {[%emt 0:00:06]} Kxd8 {[%emt 0:00:03]} 5. Nc3 {[%emt 0:00:22]} c6 {[%emt 0:00:45]} 6. Bg5+ {[%emt 0:03:36]} f6 {[%emt 0:00:08]} 7. O-O-O+ {[%emt 0:00:14]} Kc7 {[%emt 0:00:11]} 8. Be3 {[%emt 0:02:34]} (8. Bd2 $15) 8... Be6 {[%emt 0:00:25]} 9. b3 {[%emt 0:01:12]} Ba3+ {[%emt 0:04:34]} 10. Kb1 {[%emt 0:00:37]} Na6 {[%emt 0:07:56]} 11. Bc1 {[%emt 0:01:57]} Bc5 {[%emt 0:04:29]} 12. f3 $15 {[%emt 0:06:14]} h5 {[%emt 0:03:16]} 13. e4 {[%emt 0:01:56]} Nb8 {[%emt 0:10:23]} 14. Nge2 {[%emt 0:02:41]} h4 {[%emt 0:00:53]} 15. f4 {[%emt 0:00:35]} Bg4 {[%emt 0:03:29]} 16. h3 {[%emt 0:02:24]} Bh5 {[%emt 0:00:16]} 17. fxe5 {[%emt 0:00:51]} fxe5 {[%emt 0:00:14]} 18. Rd3 {[%emt 0:07:08]} Nf6 {[%emt 0:05:16]} 19. g3 {[%emt 0:07:51]} Bg6 {[%emt 0:04:31]} 20. Bg2 {[%emt 0:01:18]} Nbd7 {[%emt 0:01:13]} 21. gxh4 {[%emt 0:06:30]} Rxh4 {[%emt 0:05:36]} 22. Rhd1 {[%emt 0:07:04]} Nf8 {[%emt 0:16:45]} 23. Ng3 {[%emt 0:08:10]} Ne6 {[%emt 0:01:28]} 24. Nf5 {[%emt 0:11:17]} Nxe4 {[%emt 0:07:56]} 25. Rd7+ {[%emt 0:14:34]} Kc8 {[%emt 0:00:31]} 26. Bxe4 {[%emt 0:04:28]} Rxe4 {[%emt 0:00:20]} 27. Nd6+ {[%emt 0:03:07]} Kxd7 {[%emt 0:03:32]} 28. Ndxe4+ {[%emt 0:01:14]} Bd4 {[%emt 0:01:34]} 29. Kb2 {[%emt 0:00:45]} Bxe4 {[%emt 0:00:17]} 30. Rxd4+ {[%emt 0:00:53]} exd4 {[%emt 0:01:13]} 31. Nxe4 {[%emt 0:00:08]} Rh8 {[%emt 0:00:50]} 32. Nf2 {[%emt 0:01:01]} Kd6 {[%emt 0:00:42]} 33. Kc2 {[%emt 0:00:32]} Ke5 {[%emt 0:00:54]} 34. Kd3 {[%emt 0:00:50]} c5 {[%emt 0:01:03]} 35. Bd2 {[%emt 0:00:36]} Nf4+ {[%emt 0:00:52]} 36. Kc2 {[%emt 0:02:02]} Nxh3 {[%emt 0:01:05]} 37. Nd3+ {[%emt 0:00:17]} Kd6 {[%emt 0:00:16]} 38. b4 {[%emt 0:00:35]} b6 {[%emt 0:00:23]} 39. b5 {[%emt 0:01:02]} Rf8 {[%emt 0:02:27]} 40. a4 {[%emt 0:00:00]} g5 {[%emt 0:00:00]} 41. a5 {[%emt 0:01:14]} g4 {[%emt 0:00:55]} 42. Be1 {[%emt 0:01:32]} Rf3 {[%emt 0:00:23]} 0-1

[Event "2nd ESNAICC Women 2024"]
[Site "Andorra la Vella"]
[Date "2024.06.28"]
[Round "8.4"]
[White "Zvereva, Marija"]
[Black "De la Riva Real, Ariadna"]
[Result "1-0"]
[ECO "B25"]
[WhiteElo "2040"]
[BlackElo "1774"]
[Annotator "NA RC"]
[PlyCount "61"]
[EventDate "2024.06.24"]
[EventType "tourn"]
[EventCountry "AND"]
[SourceTitle "playchess.com"]
[Source "ChessBase"]
[SourceQuality "1"]
[TimeControl "40/5400+30:1800+30"]

1. e4 {[%emt 0:00:04]} c5 {[%emt 0:00:05]} 2. Nf3 {[%emt 0:00:13]} g6 {[%emt 0:00:06]} 3. g3 {[%emt 0:02:03]} Bg7 {[%emt 0:00:59]} 4. Bg2 {[%emt 0:00:03]} Nf6 {[%emt 0:02:03]} 5. Nc3 {[%emt 0:01:20]} Nc6 {[%emt 0:00:52]} 6. d3 {[%emt 0:01:26]} O-O {[%emt 0:01:18]} 7. O-O {[%emt 0:00:17]} d6 {[%emt 0:03:03]} 8. h3 {[%emt 0:02:38]} Rb8 {[%emt 0:06:43]} 9. a4 {[%emt 0:00:45]} a6 {[%emt 0:00:28]} 10. Be3 $11 {[%emt 0:01:34]} h6 {[%emt 0:04:29]} 11. Qd2 {[%emt 0:19:38]} Kh7 {[%emt 0:00:23]} 12. e5 {[%emt 0:02:34]} Ne8 {[%emt 0:16:21]} 13. Rab1 {[%emt 0:22:00]} b6 {[%emt 0:14:39]} 14. exd6 {[%emt 0:03:12]} Nxd6 {[%emt 0:03:27]} 15. Rfe1 {[%emt 0:08:46]} e5 {[%emt 0:07:32]} 16. Ng5+ {[%emt 0:09:02]} hxg5 {[%emt 0:00:18]} 17. Bxc6 {[%emt 0:00:03]} Bxh3 {[%emt 0:03:10]} 18. Bxg5 {[%emt 0:00:27]} Qc8 {[%emt 0:00:11]} 19. Bh1 {[%emt 0:00:54]} f6 {[%emt 0:03:12]} 20. Be3 {[%emt 0:00:12]} Rh8 {[%emt 0:00:18]} 21. Nd5 {[%emt 0:02:58]} Qe6 {[%emt 0:04:21]} 22. a5 {[%emt 0:01:42]} Kg8 {[%emt 0:00:59]} 23. Nxb6 {[%emt 0:01:10]} Qf5 {[%emt 0:03:46]} 24. Bd5+ {[%emt 0:02:07]} Kf8 {[%emt 0:00:09]} 25. Bxc5 {[%emt 0:00:52]} Ke7 {[%emt 0:00:31]} 26. Bxd6+ {[%emt 0:00:46]} Ke8 {[%emt 0:05:18]} 27. Bxb8 {[%emt 0:01:23]} Bg4 {[%emt 0:00:12]} 28. Qc3 {[%emt 0:01:11]} Bf3 {[%emt 0:02:34]} 29. Qc6+ {[%emt 0:00:12]} Kd8 {[%emt 0:00:26]} 30. Bc7+ {[%emt 0:00:22]} Ke7 {[%emt 0:00:16]} 31. Bd6+ {[%emt 0:16:06]} 1-0

[Event "2nd ESNAICC Women 2024"]
[Site "Andorra la Vella"]
[Date "2024.06.28"]
[Round "8.5"]
[White "Ruddy, Rachel"]
[Black "Muratet Carmona, Julia"]
[Result "0-1"]
[ECO "D02"]
[WhiteElo "1719"]
[BlackElo "1834"]
[Annotator "NA RC"]
[PlyCount "84"]
[EventDate "2024.06.24"]
[EventType "tourn"]
[EventCountry "AND"]
[SourceTitle "playchess.com"]
[Source "ChessBase"]
[SourceQuality "1"]
[TimeControl "40/5400+30:1800+30"]

1. d4 {[%emt 0:00:05]} d5 {[%emt 0:00:20]} 2. Nf3 {[%emt 0:00:36]} Nf6 {[%emt 0:00:31]} 3. Bf4 {[%emt 0:00:57]} Bf5 {[%emt 0:01:52]} 4. Nbd2 {[%emt 0:01:04]} e6 {[%emt 0:00:37]} 5. c4 {[%emt 0:00:41]} Nc6 {[%emt 0:05:04]} 6. a3 {[%emt 0:02:03]} Bd6 {[%emt 0:04:51]} 7. e3 {[%emt 0:02:30]} Bxf4 {[%emt 0:04:42]} 8. exf4 {[%emt 0:00:10]} Qd6 {[%emt 0:01:08]} 9. g3 {[%emt 0:01:49]} Bg4 {[%emt 0:06:44]} 10. c5 {[%emt 0:00:38]} Qe7 {[%emt 0:01:58]} 11. Nb3 {[%emt 0:02:26]} O-O {[%emt 0:03:38]} 12. Bg2 {[%emt 0:00:43]} a5 {[%emt 0:03:18]} 13. O-O {[%emt 0:03:52]} a4 {[%emt 0:05:06]} 14. Nc1 {[%emt 0:00:39]} b6 {[%emt 0:06:34]} 15. b4 {[%emt 0:01:16]} axb3 {[%emt 0:01:43]} 16. Nxb3 {[%emt 0:00:10]} Ne4 {[%emt 0:03:22]} 17. cxb6 {[%emt 0:03:45]} cxb6 {[%emt 0:00:12]} 18. Qc1 {[%emt 0:00:50]} Rfc8 {[%emt 0:01:48]} 19. Qb2 {[%emt 0:00:21]} Na5 {[%emt 0:00:59]} 20. Nxa5 {[%emt 0:03:14]} bxa5 {[%emt 0:00:25]} 21. Ne5 {[%emt 0:00:34]} Rab8 {[%emt 0:07:54]} 22. Qa2 {[%emt 0:00:42]} Bf5 {[%emt 0:02:59]} 23. g4 {[%emt 0:00:36]} Bg6 {[%emt 0:07:12]} 24. Nxg6 {[%emt 0:06:31]} hxg6 {[%emt 0:01:26]} 25. Qe2 {[%emt 0:08:53]} Nd6 {[%emt 0:01:38]} 26. a4 {[%emt 0:03:20]} Qf6 {[%emt 0:02:41]} 27. Qe5 {[%emt 0:01:00]} Nc4 {[%emt 0:02:29]} 28. Qxf6 {[%emt 0:01:23]} gxf6 {[%emt 0:00:03]} 29. f5 {[%emt 0:00:59]} Rb2 {[%emt 0:00:40]} 30. Rfd1 {[%emt 0:01:15]} Rcb8 {[%emt 0:00:36]} 31. fxe6 {[%emt 0:02:11]} fxe6 {[%emt 0:00:15]} 32. Bf1 {[%emt 0:00:25]} R8b4 {[%emt 0:04:55]} 33. h4 {[%emt 0:02:04]} Nd2 {[%emt 0:01:34]} 34. Rxd2 {[%emt 0:04:43]} Rxd2 {[%emt 0:00:08]} 35. Kg2 {[%emt 0:00:21]} Rdxd4 {[%emt 0:01:36]} 36. f3 {[%emt 0:00:39]} f5 {[%emt 0:02:21]} 37. Be2 {[%emt 0:00:36]} Rb2 {[%emt 0:01:26]} 38. Kf1 {[%emt 0:00:39]} fxg4 {[%emt 0:00:55]} 39. fxg4 {[%emt 0:00:06]} Rf4+ {[%emt 0:00:22]} 40. Ke1 {[%emt 0:00:00]} Re4 {[%emt 0:00:00]} 41. Ra3 {[%emt 0:01:46]} Rexe2+ {[%emt 0:00:35]} 42. Kf1 {[%emt 0:00:52]} Ra2 {[%emt 0:00:59]} 0-1

[Event "2nd ESNAICC Women 2024"]
[Site "Andorra la Vella"]
[Date "2024.06.29"]
[Round "9.2"]
[White "De la Riva Real, Ariadna"]
[Black "Ruddy, Rachel"]
[Result "0-1"]
[ECO "C41"]
[WhiteElo "1774"]
[BlackElo "1719"]
[Annotator "NA RC"]
[PlyCount "70"]
[EventDate "2024.06.24"]
[EventType "tourn"]
[EventCountry "AND"]
[SourceTitle "playchess.com"]
[Source "ChessBase"]
[SourceQuality "1"]
[TimeControl "40/5400+30:1800+30"]

1. e4 {[%emt 0:00:02]} e5 {[%emt 0:00:09]} 2. Nf3 {[%emt 0:00:07]} d6 {[%emt 0:00:10]} 3. d4 {[%emt 0:00:22]} Nd7 {[%emt 0:00:23]} 4. Bc4 {[%emt 0:00:23]} h6 {[%emt 0:00:43]} 5. Nc3 {[%emt 0:03:04]} c6 {[%emt 0:00:51]} 6. O-O {[%emt 0:07:22]} Ngf6 {[%emt 0:00:10]} 7. dxe5 {[%emt 0:06:01]} dxe5 {[%emt 0:01:17]} 8. a4 {[%emt 0:07:31]} Be7 {[%emt 0:02:39]} 9. h3 {[%emt 0:04:24]} Qc7 {[%emt 0:02:58]} 10. Be3 {[%emt 0:10:59]} g5 {[%emt 0:06:03]} 11. Nh2 {[%emt 0:01:49]} Nf8 {[%emt 0:00:44]} 12. f3 {[%emt 0:08:32]} Ng6 {[%emt 0:02:42]} 13. Ne2 {[%emt 0:00:35]} Nf4 {[%emt 0:02:00]} 14. Ng3 {[%emt 0:09:16]} h5 {[%emt 0:02:37]} 15. Nf5 {[%emt 0:00:17]} Bxf5 {[%emt 0:00:31]} 16. exf5 {[%emt 0:00:01]} Bd6 {[%emt 0:02:24]} 17. h4 {[%emt 0:03:27]} gxh4 {[%emt 0:08:12]} 18. Bxf4 {[%emt 0:00:32]} exf4 {[%emt 0:00:17]} 19. Qe1+ {[%emt 0:01:01]} Be7 {[%emt 0:01:46]} 20. Qe2 {[%emt 0:07:01]} O-O-O {[%emt 0:00:59]} 21. Bxf7 {[%emt 0:00:20]} Bc5+ {[%emt 0:00:22]} 22. Kh1 {[%emt 0:00:11]} Qxf7 {[%emt 0:00:06]} 23. Qe5 {[%emt 0:03:16]} Bd6 {[%emt 0:01:50]} 24. Qa5 {[%emt 0:00:09]} Kb8 {[%emt 0:01:06]} 25. Qc3 {[%emt 0:01:05]} Nd5 {[%emt 0:00:51]} 26. Qb3 {[%emt 0:00:11]} Qxf5 {[%emt 0:01:08]} 27. a5 {[%emt 0:05:28]} a6 {[%emt 0:00:49]} 28. Rfe1 {[%emt 0:02:37]} h3 {[%emt 0:02:24]} 29. Re2 {[%emt 0:01:00]} Rhg8 {[%emt 0:01:10]} 30. Rae1 {[%emt 0:03:14]} Qg5 {[%emt 0:01:17]} 31. Rg1 {[%emt 0:01:56]} Bc5 {[%emt 0:01:01]} 32. Qa2 {[%emt 0:02:53]} Bxg1 {[%emt 0:00:37]} 33. Kxg1 {[%emt 0:00:01]} hxg2 {[%emt 0:00:17]} 34. Qb1 {[%emt 0:01:07]} Ne3 {[%emt 0:00:48]} 35. Re1 {[%emt 0:00:09]} Qc5 {[%emt 0:00:32]} 0-1